Cogmind - Beta 9.4 @@@ ROGUE MODE // 2020.01.11 @ 23:08:43 // Winter2019/RPGLIKE Player: FontPeg Result: Destroyed by B-75 Beast with Magnetic Acceleration Cannon Performance ------------- Evolutions (4) 2000 Regions Visited (10) 2000 Robots Destroyed (55) 275 Value Destroyed (1754) 1754 Prototype IDs (28) 560 Alien Tech Used (0) 0 Bonus (711) 711 TOTAL SCORE: 7300 Bonus ------- High Alert Combat Kills 138 Follower Combat Kills 273 Aligned with FarCom 300 Cogmind --------- Core Integrity 0/1150 Matter 110/300 Energy 2263/2300 System Corruption 1% Temperature Cool (168) Movement Flying (42) Location -6/Extension Parts ------- > --- POWER (1) -------- Enhanced Nuclear Core > --- PROPULSION (7) --- Xenon Bombardment Thruster Flying Fortress v7 > --- UTILITY (5) ------ Superbattery Advanced Sensor Array Improved Signal Interpreter Improved Medium Armor Plating Hacking Suite > --- WEAPON (3) ------- High-powered Shock Rifle Heavy Rocket Launcher Power Sword > --- INVENTORY (4) ---- Improved Deuterium Engine Improved Shield Generator Gatling Laser Remote Datajack Peak State ------------ > --- POWER ------------ Enhanced Nuclear Core > --- PROPULSION ------- Xenon Bombardment Thruster Flying Fortress v7 > --- UTILITY ---------- Superbattery Advanced Sensor Array Improved Signal Interpreter Improved Medium Armor Plating Hacking Suite > --- WEAPON ----------- High-powered Shock Rifle Heavy Rocket Launcher Power Sword > --- INVENTORY -------- Improved Deuterium Engine Improved Shield Generator Gatling Laser Remote Datajack [Rating: 78] Favorites ----------- Power Improved Ion Engine Engine Improved Ion Engine Power Core Enhanced Nuclear Core Propulsion Flight Unit Wheel Armored Wheel Flight Unit Flight Unit Utility Hacking Suite Device Sensor Array Storage Superbattery Processor Signal Interpreter Hackware Hacking Suite Protection Improved Medium Armor Plating Weapon Mini Grenade Launcher Energy Gun Heavy EM Pulse Gun Ballistic Gun Assault Rifle Launcher Mini Grenade Launcher Slashing Weapon Katana Special Melee Weapon Datajack Build | -11 -10 -10 -9 -9 -9 -8 -8 -7 -6 -6 ------- Run | Scr Mat Min Mat Min Exi Min Mat Fac Fac Ext Slots Evolved 12 | 3 . 2 1 . 1 . . 3 2 . Power . | . . . . . . . . . . . Propulsion 6 | 1 . . 1 . 1 . . 1 2 . Utility 4 | . . 2 . . . . . 2 . . Weapon 2 | 2 . . . . . . . . . . Parts Attached 44 | 6 6 1 10 1 1 1 1 13 4 . Power 4 | 1 . . 1 . . . 1 1 . . Engine 3 | 1 . . 1 . . . 1 . . . Core 1 | . . . . . . . . 1 . . Reactor . | . . . . . . . . . . . Propulsion 11 | 2 2 . 4 . 1 . . 2 . . Treads . | . . . . . . . . . . . Leg . | . . . . . . . . . . . Wheel 4 | 2 2 . . . . . . . . . Hover . | . . . . . . . . . . . Flight 7 | . . . 4 . 1 . . 2 . . Utility 14 | . 2 1 2 . . 1 . 6 2 . Device 6 | . 2 . 1 . . . . 3 . . Storage 1 | . . . . . . 1 . . . . Processor 2 | . . . 1 . . . . 1 . . Hackware 2 | . . 1 . . . . . . 1 . Protection 3 | . . . . . . . . 2 1 . Artifact . | . . . . . . . . . . . Weapon 15 | 3 2 . 3 1 . . . 4 2 . Energy Gun 8 | 2 . . 3 . . . . 2 1 . Energy Cannon . | . . . . . . . . . . . Ballistic Gun 1 | 1 . . . . . . . . . . Ballistic Cannon . | . . . . . . . . . . . Launcher 2 | . 1 . . . . . . 1 . . Special Weapon . | . . . . . . . . . . . Impact Weapon . | . . . . . . . . . . . Slashing Weapon 3 | . . . . 1 . . . 1 1 . Piercing Weapon . | . . . . . . . . . . . Special Melee Weapon 1 | . 1 . . . . . . . . . Unidentified Prototypes 2 | . . . 1 . . . . 1 . . Parts Lost . | . . . . . . . . . . . Power . | . . . . . . . . . . . Propulsion . | . . . . . . . . . . . Utility . | . . . . . . . . . . . Weapon . | . . . . . . . . . . . Highest Loss Streak . | . . . . . . . . . . . Average Slot Usage (%) 85 | . 98 97 96 100 84 72 72 76 69 68 Engine 6 | . 14 13 10 10 9 9 9 . . . Core 2 | . . . . . . . . 6 6 6 Wheel 5 | . 27 27 3 . . . . . . . Flight 14 | . . . 24 30 18 9 9 13 12 12 Device 7 | . 12 1 9 10 9 2 . 6 6 6 Storage 3 | . . . . . . 7 9 7 6 6 Processor 6 | . . . 8 10 9 9 9 7 6 6 Hackware 7 | . . 12 10 10 9 9 9 7 6 6 Protection 2 | . . . . . . . . 7 6 6 Energy Gun 10 | . 24 13 10 10 9 9 9 7 6 6 Launcher 9 | . 12 13 10 10 9 9 9 7 6 6 Slashing Weapon 4 | . . . . 6 9 9 9 7 6 6 Special Melee Weapon 3 | . 3 13 10 3 . . . . . . Naked Turns . | . . . . . . . . . . . Heaviest Build 36 | 11 12 10 13 14 14 17 19 35 36 35 Greatest Support 84 | 26 26 24 24 17 77 77 77 84 84 84 Greatest Overweight (x) 2 | . . . 2 . . . . . . . Average Overweight (x) . | . . . . . . . . . . . Largest Inventory Capacity 4 | . . . 4 4 4 4 4 4 4 4 Average Capacity 2 | . . . 1 4 4 4 4 4 4 4 Most Carried 4 | . . . 3 2 4 4 4 4 4 4 Average Carried 2 | . . . . 2 3 3 4 3 4 4 Final Capacity 4 | . . . 4 4 4 4 4 4 4 4 Final Carried 4 | . . . 2 2 4 4 4 4 4 4 Class Distribution -------------------- 47% | Hacker-Mutant 43% | Hacker-Scout 6% | Mutant 3% | Gunner Dominant Class ---------------- Mutant | -10/Materials Hacker-Mutant | -10/Mines Hacker-Mutant | -9/Materials Hacker-Mutant | -9/Mines Hacker-Scout | -9/Exiles Hacker-Mutant | -8/Mines Hacker-Mutant | -8/Materials Hacker-Scout | -7/Factory Hacker-Scout | -6/Factory Hacker-Scout | -6/Extension Resources | -11 -10 -10 -9 -9 -9 -8 -8 -7 -6 -6 ----------- Run | Scr Mat Min Mat Min Exi Min Mat Fac Fac Ext Matter Collected 954 | 249 36 125 170 23 . 50 28 273 . . Remotely . | . . . . . . . . . . . Salvage Created 1277 | . 123 60 392 91 . . 46 525 30 10 Parts 108 | . 10 2 42 10 . . 6 27 4 7 Haulers Intercepted 3 | . . . 3 . . . . . . . Recyclers Shooed 1 | . . . 1 . . . . . . . Parts Field Recycled . | . . . . . . . . . . . Retrieved Matter . | . . . . . . . . . . . Parts Self-Destructed . | . . . . . . . . . . . Prevented . | . . . . . . . . . . . Kills | -11 -10 -10 -9 -9 -9 -8 -8 -7 -6 -6 ------- Run | Scr Mat Min Mat Min Exi Min Mat Fac Fac Ext Combat Hostiles Destroyed 41 | . 5 1 14 6 . . . 14 . 1 Melee 1 | . . . . . . . . 1 . . Guns 9 | . 1 1 4 . . . . 2 . 1 AOE 29 | . 4 . 9 6 . . . 10 . . Classes Destroyed 11 | . 3 . 3 2 . . 1 2 . . Builder 4 | . . . . 1 . . . 1 1 1 Tunneler 1 | . . . . . . . 1 . . . Hauler 3 | . . . 3 . . . . . . . Operator 2 | . . . 1 . . . . 1 . . Watcher 4 | . 1 . 1 . . . 1 1 . . Swarmer 11 | . 3 . 4 3 . . . 1 . . Grunt 19 | . 2 1 7 2 . . . 7 . . Duelist 2 | . . . . 1 . . . 1 . . Sentry 6 | . . . 3 . . . . 2 . 1 Hunter 2 | . . . . . . . . 2 . . Programmer 1 | . . . . . . . . 1 . . Best Kill Streak 7 | . 3 1 4 7 . . 1 5 1 2 Combat Bots Only 6 | . 3 1 4 6 . . . 5 . 1 Max Kills in Single Turn 3 | . 2 1 3 3 . . 1 2 1 1 Gunslinging . | . . . . . . . . . . . Exploded 3 | . 2 . 3 2 . . . 2 . . Melee 1 | . . . . . . . . 1 . . Uniques/NPCs Destroyed . | . . . . . . . . . . . Combat | -11 -10 -10 -9 -9 -9 -8 -8 -7 -6 -6 -------- Run | Scr Mat Min Mat Min Exi Min Mat Fac Fac Ext Damage Taken 2673 | . 285 95 488 12 . . 489 1037 . 267 Core 2047 | . 240 79 410 8 . . 406 711 . 193 Absorbed by Shields . | . . . . . . . . . . . Redirected to Core 1454 | . 144 54 276 8 . . 282 516 . 174 Core Remaining (%) 61 | 100 . 88 . . . 93 25 2 . . Volleys Fired 135 | . 13 1 52 4 . . 5 50 7 3 Largest 3 | . 3 1 2 2 . . 2 2 1 2 Hottest 130 | . 130 50 80 75 . . 75 119 60 99 Shots Fired 192 | . 34 1 60 8 . . 7 70 7 5 Gun 146 | . 26 1 52 4 . . 5 48 7 3 Cannon . | . . . . . . . . . . . Launcher 46 | . 8 . 8 4 . . 2 22 . 2 Special . | . . . . . . . . . . . Kinetic . | . . . . . . . . . . . Thermal 36 | . 26 1 6 . . . . 3 . . Explosive 46 | . 8 . 8 4 . . 2 22 . 2 Electromagnetic 110 | . . . 46 4 . . 5 45 7 3 Robot Hit Streak 7 | . 4 2 7 3 . . 1 6 . 3 Robot Miss Streak 7 | . 3 . 2 2 . . 3 4 7 1 Penetration Max . | . . . . . . . . . . . Secondary Targets . | . . . . . . . . . . . Shots Hit Robots 122 | . 17 2 40 3 . . 12 45 . 3 Core Hits 93 | . 9 1 29 7 . . 3 38 1 5 Critical Hits 1 | . . . . . . . 1 . . . Critical Kills . | . . . . . . . . . . . Critical Parts Destroyed 1 | . . . . . . . 1 . . . Melee Attacks 29 | . 1 1 1 . . . 13 7 6 . Impact . | . . . . . . . . . . . Slashing 26 | . . . . . . . 13 7 6 . Piercing . | . . . . . . . . . . . Sneak Attacks 6 | . 1 1 1 . . . 1 2 . . Combat Hostiles . | . . . . . . . . . . . Follow-up Attacks . | . . . . . . . . . . . Damage Inflicted 5321 | . 431 12 1196 340 . . 462 2616 27 237 Guns 1372 | . 148 12 524 17 . . 66 540 27 38 Cannons . | . . . . . . . . . . . Explosions 3191 | . 283 . 672 323 . . . 1714 . 199 Melee 758 | . . . . . . . 396 362 . . Ramming . | . . . . . . . . . . . Kinetic . | . . . . . . . . . . . Thermal 577 | . 148 12 83 21 . . . 313 . . Explosive 2903 | . 283 . 640 302 . . . 1479 . 199 Electromagnetic 1083 | . . . 473 17 . . 66 462 27 38 Impact . | . . . . . . . . . . . Slashing 758 | . . . . . . . 396 362 . . Piercing . | . . . . . . . . . . . Highest Corruption 1 | . . . . . . . . . 1 1 Average Corruption 1 | . . . . . . . . . 1 1 Corruption Purged . | . . . . . . . . . . . Effects 2 | . . . . . . . . . 2 . Message Errors 1 | . . . . . . . . . 1 . Energy Discharges 1 | . . . . . . . . . 1 . Overload Shots . | . . . . . . . . . . . Overflow Damage 150 | . . . . . . . 11 130 . 9 Projectiles . | . . . . . . . . . . . Explosions 139 | . . . . . . . . 130 . 9 Melee 11 | . . . . . . . 11 . . . Knockbacks . | . . . . . . . . . . . Impact . | . . . . . . . . . . . Kinetic . | . . . . . . . . . . . Secondary . | . . . . . . . . . . . Self-Inflicted Damage 245 | . 99 . . . . . 39 107 . . Shots 9 | . 3 . . . . . 1 5 . . Rammed . | . . . . . . . . . . . Targets Rammed . | . . . . . . . . . . . Kicked . | . . . . . . . . . . . Crushed . | . . . . . . . . . . . Highest Temperature 461 | . 461 10 42 18 . . 36 395 170 164 Average Temperature 119 | . 190 7 18 9 . . 11 149 101 86 Received Heat Transfer 795 | . 96 54 195 . . . 171 219 . 60 Effects 9 | . 5 . . . . . . 4 . . Shutdowns 3 | . 2 . . . . . . 1 . . Energy Bleed 2 | . . . . . . . . 2 . . Interference 3 | . 3 . . . . . . . . . Matter Decay 1 | . . . . . . . . 1 . . Siege Activations . | . . . . . . . . . . . Robots Corrupted 2 | . . . 1 . . . . 1 . . Combat Hostiles 2 | . . . 1 . . . . 1 . . Parts Fried 3 | . . . 1 . . . . 2 . . Impact Corruptions . | . . . . . . . . . . . Robots Melted . | . . . . . . . . . . . Combat Hostiles . | . . . . . . . . . . . Parts Melted . | . . . . . . . . . . . Heat Transferred 1104 | . 444 37 198 50 . . . 375 . . Parts Sabotaged . | . . . . . . . . . . . Parts Stolen . | . . . . . . . . . . . Parts Stripped . | . . . . . . . . . . . Power Chain Reactions 3 | . . . 1 1 . . . 1 . . Missiles Intercepted . | . . . . . . . . . . . Alert | -11 -10 -10 -9 -9 -9 -8 -8 -7 -6 -6 ------- Run | Scr Mat Min Mat Min Exi Min Mat Fac Fac Ext Peak Influence 753 | . 148 115 753 451 . . 104 490 257 190 Average Influence 196 | . 79 65 340 374 . . 43 163 236 131 Maximum Alert Level 3 | . . . 3 2 . . . 2 1 . Low Security (%) 56 | 100 100 100 27 . . 100 100 65 . 100 Level 1 26 | . . . 38 47 . . . 18 100 . Level 2 14 | . . . 26 52 . . . 16 . . Level 3 2 | . . . 8 . . . . . . . Level 4 . | . . . . . . . . . . . Level 5 . | . . . . . . . . . . . High Security . | . . . . . . . . . . . Max Security . | . . . . . . . . . . . Squads Dispatched 19 | . . 1 4 . . . 1 10 2 1 Investigation 11 | . . 1 4 . . . . 5 1 . Extermination 1 | . . . . . . . . 1 . . Reinforcement 6 | . . . . . . . 1 3 1 1 Assault . | . . . . . . . . . . . Garrison 1 | . . . . . . . . 1 . . Intercept . | . . . . . . . . . . . Construction Impeded 2 | . . . . . . . . 1 . 1 Haulers Reinforced . | . . . . . . . . . . . Stealth | -11 -10 -10 -9 -9 -9 -8 -8 -7 -6 -6 --------- Run | Scr Mat Min Mat Min Exi Min Mat Fac Fac Ext Distress Signals 3 | . . . . . . . 1 1 1 . Communications Jammed . | . . . . . . . . . . . Distress Signals . | . . . . . . . . . . . Times Spotted 79 | . 7 3 27 3 . . 8 24 2 5 Peak Tracking Total 8 | . 4 2 5 3 . . 8 4 3 4 Tactical Retreats 4 | . . . . . . . . 3 1 . Traps | -11 -10 -10 -9 -9 -9 -8 -8 -7 -6 -6 ------- Run | Scr Mat Min Mat Min Exi Min Mat Fac Fac Ext Traps Triggered 5 | . . . 1 . . . . 4 . . Indirectly . | . . . . . . . . . . . Trap Hack Attempts . | . . . . . . . . . . . Triggered . | . . . . . . . . . . . Disarmed . | . . . . . . . . . . . Reprogrammed 6 | . . . . . . . . 6 . . Reused 1 | . . . . . . . . 1 . . Traps Extracted . | . . . . . . . . . . . Installed . | . . . . . . . . . . . Triggered 1 | . . . . . . . . 1 . . Machines | -11 -10 -10 -9 -9 -9 -8 -8 -7 -6 -6 ---------- Run | Scr Mat Min Mat Min Exi Min Mat Fac Fac Ext Machines Disabled 14 | . 1 . 4 . . . . 9 . . Max in Single Turn 4 | . 1 . 1 . . . . 4 . . Garrison Access 2 | . . . . . . . . 2 . . Machines Sabotaged . | . . . . . . . . . . . Garrisons Compromised . | . . . . . . . . . . . Overloaded Fab Kills . | . . . . . . . . . . . Fab Network Shutdowns . | . . . . . . . . . . . Hacking | -11 -10 -10 -9 -9 -9 -8 -8 -7 -6 -6 --------- Run | Scr Mat Min Mat Min Exi Min Mat Fac Fac Ext Machines Accessed 26 | . 2 1 9 . 1 . . 12 1 . Terminals 18 | . 2 . 8 . . . . 8 . . Fabricators 2 | . . . . . . . . 1 1 . Repair Stations . | . . . . . . . . . . . Recycling Units . | . . . . . . . . . . . Scanalyzers 2 | . . . 1 . . . . 1 . . Garrison Access 2 | . . . . . . . . 2 . . Total Hacks 73 | . 3 1 35 . 1 . . 30 3 . Successful 48 | . 3 1 27 . 1 . . 16 . . Failed 25 | . . . 8 . . . . 14 3 . Catastrophic . | . . . . . . . . . . . Database Lockouts . | . . . . . . . . . . . Manual 43 | . 2 . 30 . 1 . . 10 . . Terminals 60 | . 3 . 34 . . . . 23 . . Fabricators 6 | . . . . . . . . 3 3 . Repair Stations . | . . . . . . . . . . . Recycling Units . | . . . . . . . . . . . Scanalyzers 2 | . . . 1 . . . . 1 . . Garrison Access 3 | . . . . . . . . 3 . . Terminal Hacks 29 | . 1 1 17 . 1 . . 9 . . Part Schematic 5 | . . . 4 . . . . 1 . . Robot Analysis 1 | . . . 1 . . . . . . . Prototype ID Bank 2 | . 1 . 1 . . . . . . . Open Door 1 | . . 1 . . . . . . . . Branch Access Points 1 | . . . 1 . . . . . . . Terminal Index 2 | . . . 1 . . . . 1 . . Fabricator Index 1 | . . . . . . . . 1 . . Unreport Threat 3 | . . . 1 . . . . 2 . . Reprogram Traps 2 | . . . 1 . . . . 1 . . Dispatch Records 1 | . . . 1 . . . . . . . Security Status 1 | . . . 1 . . . . . . . Patrol Status 1 | . . . 1 . . . . . . . Reinforcement Status 1 | . . . 1 . . . . . . . Assault Status 1 | . . . 1 . . . . . . . Recall Investigation 4 | . . . 2 . . . . 2 . . Recall Assault 1 | . . . . . . . . 1 . . EX-Prototype ID Bank 1 | . . . . . 1 . . . . . Fabricator Hacks . | . . . . . . . . . . . Repair Station Hacks . | . . . . . . . . . . . Recycling Unit Hacks . | . . . . . . . . . . . Scanalyzer 1 | . . . . . . . . 1 . . Insert Component 1 | . . . . . . . . 1 . . Garrison Access Hacks 2 | . . . . . . . . 2 . . Seal Access 2 | . . . . . . . . 2 . . Unauthorized Hacks 33 | . 4 . 21 . . . . 8 . . Terminals 15 | . 2 . 9 . . . . 4 . . Track 1 | . . . 1 . . . . . . . Botnet 12 | . 2 . 6 . . . . 4 . . Disrupt 1 | . . . 1 . . . . . . . Operators 1 | . . . 1 . . . . . . . Fabricators . | . . . . . . . . . . . Repair Stations . | . . . . . . . . . . . Recycling Units . | . . . . . . . . . . . Scanalyzers 1 | . . . 1 . . . . . . . Extract 1 | . . . 1 . . . . . . . Garrison Access . | . . . . . . . . . . . Data Cores Recovered 1 | . . . 1 . . . . . . . Used 1 | . . . 1 . . . . . . . Hacking Detections 20 | . 1 . 8 . . . . 10 1 . Full Trace Events 8 | . . . 2 . . . . 5 1 . Feedback Events 1 | . . . . . . . . . 1 . Corruption 1 | . . . . . . . . . 1 . Feedback Blocked . | . . . . . . . . . . . Robot Schematics Acquired . | . . . . . . . . . . . Robots Built . | . . . . . . . . . . . Matter . | . . . . . . . . . . . Time . | . . . . . . . . . . . Total Robot Build Rating . | . . . . . . . . . . . Part Schematics Acquired 6 | . . . 5 . . . . 1 . . Parts Built . | . . . . . . . . . . . Matter . | . . . . . . . . . . . Time . | . . . . . . . . . . . Total Part Build Rating . | . . . . . . . . . . . Parts Repaired . | . . . . . . . . . . . Time . | . . . . . . . . . . . Parts Recycled . | . . . . . . . . . . . Recycled Matter . | . . . . . . . . . . . Retrieved Matter . | . . . . . . . . . . . Retrieved Components . | . . . . . . . . . . . Parts Scanalyzed . | . . . . . . . . . . . Part Schematics Acquired . | . . . . . . . . . . . Parts Damaged . | . . . . . . . . . . . Bothacking | -11 -10 -10 -9 -9 -9 -8 -8 -7 -6 -6 ------------ Run | Scr Mat Min Mat Min Exi Min Mat Fac Fac Ext Used RIF Installer . | . . . . . . . . . . . Robots Hacked . | . . . . . . . . . . . Non-combat . | . . . . . . . . . . . Combat . | . . . . . . . . . . . Robot Hacks Applied . | . . . . . . . . . . . Relay Couplers Released . | . . . . . . . . . . . Robots Rewired . | . . . . . . . . . . . Allies Hacked . | . . . . . . . . . . . Hacks Repelled . | . . . . . . . . . . . Allies | -11 -10 -10 -9 -9 -9 -8 -8 -7 -6 -6 -------- Run | Scr Mat Min Mat Min Exi Min Mat Fac Fac Ext Total Allies 3 | . . 3 . . . . . . . . Largest Group 3 | . . 3 3 2 2 2 . . . . Highest-Rated Group 40 | . . 40 40 32 32 32 . . . . Highest-Rated Ally 16 | . . 16 16 16 16 16 . . . . Total Orders 4 | . . . 2 . . . . 1 1 . ROAM 2 | . . . . . . . . 1 1 . GUARD 2 | . . . 2 . . . . . . . Ally Attacks 68 | . . 4 62 2 . . . . . . Total Damage 775 | . . 42 720 13 . . . . . . Kills 15 | . . 1 14 . . . . . . . Allies Corrupted . | . . . . . . . . . . . Allies Melted . | . . . . . . . . . . . Intel | -11 -10 -10 -9 -9 -9 -8 -8 -7 -6 -6 ------- Run | Scr Mat Min Mat Min Exi Min Mat Fac Fac Ext Robot Analysis Total 1 | . . . 1 . . . . . . . Derelict Logs Recovered 3 | . . 2 . 1 . . . . . . Drone Launches 3 | . . . . . . . . 1 2 . Drone Recoveries . | . . . . . . . . . . . Exploration | -11 -10 -10 -9 -9 -9 -8 -8 -7 -6 -6 ------------- Run | Scr Mat Min Mat Min Exi Min Mat Fac Fac Ext Turns Passed 2908 | 52 229 203 708 133 223 86 148 841 224 61 Spaces Moved 4209 | 51 190 164 762 202 401 166 177 1525 445 126 Core 4 | 4 . . . . . . . . . . Treads . | . . . . . . . . . . . Legs . | . . . . . . . . . . . Wheels 486 | 47 190 164 85 . . . . . . . Hover . | . . . . . . . . . . . Flight 3719 | . . . 677 202 401 166 177 1525 445 126 Fastest Speed 34 | 50 90 90 34 34 34 50 50 42 42 42 Average Speed 49 | 85 90 90 56 34 38 50 50 43 42 42 Slowest Speed 210 | 90 90 90 210 34 50 50 50 50 42 42 Overloaded Moves . | . . . . . . . . . . . Propulsion Burnouts . | . . . . . . . . . . . Robots Hopped 9 | . . . 2 . . 1 . 1 4 1 Cave-ins Triggered . | . . . . . . . . . . . Exploration Rate (%) 38 | 3 34 36 58 35 81 64 23 50 15 25 Regions Visited 10 Branch Regions 5 Pre-discovered Areas 3 | . . 2 . 1 . . . . . . Known Exits Taken 8 | . . 1 1 1 1 1 1 1 1 . Unknown Exits Taken 2 | 1 1 . . . . . . . . . Scrap Searched 1 | . . . . . . 1 . . . . Spaces Dug 41 | . . . 11 . . . 10 14 6 . Terrain Destroyed 396 | . 54 . 69 54 . . 17 178 6 18 Melee 7 | . . . . . . . 1 . 6 . Projectile . | . . . . . . . . . . . AOE 389 | . 54 . 69 54 . . 16 178 . 18 Actions | -11 -10 -10 -9 -9 -9 -8 -8 -7 -6 -6 --------- Run | Scr Mat Min Mat Min Exi Min Mat Fac Fac Ext Total 4785 | 56 218 217 974 257 471 167 209 1627 461 128 Wait 294 | . 4 39 116 50 65 . 13 7 . . Move 4182 | 50 189 163 757 201 400 163 176 1522 437 124 Hop 8 | . . . 2 . . 1 . 1 3 1 Pick Up 13 | . . . 4 . 2 1 . 6 . . Fast Attach 24 | 6 6 1 6 . 1 . . 4 . . Attach 4 | . . . 1 . . 1 . 2 . . Detach . | . . . . . . . . . . . Swap 16 | . . . 3 1 . . 1 7 4 . Drop 31 | . 5 1 5 . 3 1 1 12 3 . Fire 135 | . 13 1 52 4 . . 5 50 7 3 Melee 29 | . 1 1 1 . . . 13 7 6 . Ram . | . . . . . . . . . . . Kick . | . . . . . . . . . . . Crush . | . . . . . . . . . . . Escape Stasis . | . . . . . . . . . . . Rewire . | . . . . . . . . . . . Trap . | . . . . . . . . . . . Miscellaneous 49 | . . 11 27 1 . . . 9 1 . Route ------- -11/Scrapyard -10/Materials (discovered 2 exits: *Mat / *Min) -10/Mines (discovered 2 exits: *Mat x2) -9/Materials (discovered 3 exits: *Mat / *Min x2) -9/Mines (discovered 2 exits: *Mat / *Exi) -9/Exiles -8/Mines -8/Materials (discovered 2 exits: *Fac / *Sto) -7/Factory (discovered 3 exits: *Fac / *Low x2) -6/Factory -6/Extension History --------- Turn | Location | Event 3 | -11/Scrapyard | Upgraded with Propulsion slot (x1) 3 | -11/Scrapyard | Upgraded with Weapon slot (x2) 3 | -11/Scrapyard | Discovered new exit (range 16) 53 | -11/Scrapyard | Entered Materials 91 | -10/Materials | Discovered new exit (range 16) 172 | -10/Materials | Discovered new exit (range 11) 282 | -10/Materials | Entered Mines 283 | -10/Mines | Learned location of Storage (-8) 293 | -10/Mines | Met a Derelict shopkeep closing up shop 302 | -10/Mines | Met a Derelict bent on vengeance 347 | -10/Mines | Discovered new exit (range 6) 399 | -10/Mines | Identified exit to Materials 423 | -10/Mines | Assisted by bots powering up and referring to "LRC-V3" 455 | -10/Mines | Reached level 2 466 | -10/Mines | Upgraded with Utility slot (x2) 473 | -10/Mines | Assembled infested the area 485 | -10/Mines | Entered Materials 485 | -9/Materials | Accompanied by 3 allies 487 | -9/Materials | Reached level 3 513 | -9/Materials | Upgraded with Propulsion slot (x1) 603 | -9/Materials | Build established: Hacker-Mutant 875 | -9/Materials | Reached level 4 1020 | -9/Materials | Reached level 5 1094 | -9/Materials | Identified exit to Mines 1095 | -9/Materials | Discovered new exit (range 14) 1149 | -9/Materials | Reached level 6 1193 | -9/Materials | Entered Mines 1193 | -9/Mines | Accompanied by 2 allies 1255 | -9/Mines | Learned location of Zion (-6) 1255 | -9/Mines | Discovered new exit (range 7) 1264 | -9/Mines | Identified exit to Materials 1285 | -9/Mines | Deemed a non-threat by the Exiles lab entrance 1285 | -9/Mines | Discovered new exit (range 5) 1286 | -9/Mines | Identified exit to Exiles 1326 | -9/Mines | Entered Exiles 1326 | -9/Exiles | Accompanied by 2 allies 1328 | -9/Exiles | Reached level 7 1336 | -9/Exiles | Met 8R-AWN 1341 | -9/Exiles | Met EX-HEX 1354 | -9/Exiles | Met EX-DEC 1367 | -9/Exiles | Visited The Gauntlet 1410 | -9/Exiles | Met EX-BIN 1418 | -9/Exiles | Aligned with FarCom system 1418 | -9/Exiles | Given EX-Vault access code 1426 | -9/Exiles | Opened EX-Vault 1427 | -9/Exiles | Upgraded with Propulsion slot (x1) 1430 | -9/Exiles | Found Flying Fortress v7 1432 | -9/Exiles | Found Supersonic Drone Bay 1435 | -9/Exiles | Found Superbattery 1447 | -9/Exiles | Warned to stay clear of 0b10 Research branches 1479 | -9/Exiles | Discovered new exit (range 10) 1483 | -9/Exiles | Identified exit to Mines 1549 | -9/Exiles | Stole three prototypes: Flying Fortress v7, Supersonic Drone Bay, Superbattery 1549 | -9/Exiles | Entered Mines 1549 | -8/Mines | Accompanied by 2 allies 1626 | -8/Mines | Discovered exit to Materials (range 12) 1635 | -8/Mines | Entered Materials 1637 | -8/Materials | Reached level 8 1705 | -8/Materials | Discovered new exit (range 16) 1748 | -8/Materials | Core integrity fell below 50% 1755 | -8/Materials | Identified exit to Storage 1781 | -8/Materials | Discovered new exit (range 3) 1782 | -8/Materials | Identified exit to Factory 1783 | -8/Materials | Entered Factory 1784 | -7/Factory | Core integrity fell below 50% 1785 | -7/Factory | FarCom data flow suspended 1785 | -7/Factory | Reached level 9 1787 | -7/Factory | Upgraded with Propulsion slot (x1) 1787 | -7/Factory | Upgraded with Utility slot (x2) 1797 | -7/Factory | Discovered new exit (range 44) 2167 | -7/Factory | Build established: Hacker-Scout 2312 | -7/Factory | Reached level 10 2339 | -7/Factory | Core integrity fell below 20% 2339 | -7/Factory | Discovered new exit (range 15) 2354 | -7/Factory | Identified exit to Lower Caves 2483 | -7/Factory | Reached level 11 2608 | -7/Factory | Discovered new exit (range 17) 2613 | -7/Factory | Garrison activated, responded to threat 2624 | -7/Factory | Identified exit to Factory 2624 | -7/Factory | Entered another Factory area 2625 | -6/Factory | Core integrity fell below 50% 2625 | -6/Factory | Core integrity fell below 20% 2626 | -6/Factory | Reached level 12 2652 | -6/Factory | Upgraded with Propulsion slot (x2) 2841 | -6/Factory | Discovered new exit (range 18) 2848 | -6/Factory | Identified exit to Extension 2848 | -6/Factory | Entered Extension 2850 | -6/Extension | Reached level 13 2879 | -6/Extension | Spotted B-75 Beast 2890 | -6/Extension | Spotted B-75 Beast 2905 | -6/Extension | Rescued a captive Derelict 2909 | -6/Extension | Destroyed by B-75 Beast with Magnetic Acceleration Cannon Last Messages --------------- 02824_ O-16 Technician: "IFF HANDSHAKE FAILED. SECURING TERMINAL." 02833_ ALERT: Hostiles spotted, dispatching reinforcements to Terminal F002. 02840_ System corrupted: Energy discharge (-736). 02841_ EXIT=FOUND 02848_ EXIT=IDENTIFIED: EXTENSION LOCATION=EXTENSION GOAL=ESCAPE 02850_ Reached level 13. 02884_ Upgraded: KI Resistance % (+5) 02884_ Upgraded: TH Resistance % (+10) 02884_ Upgraded: EX Resistance % (+10) 02894_ Machine disabled. 02898_ ALERT: Construction progress impeded, dispatching reinforcements to local area. 02901_ U-05 Engineer destroyed. 02901_ Y-54 Guardian destroyed. Sealed Heavy Doors opened remotely. 02905_ VS-A08(l): "Free at last!" 02905_ Connecting with Terminal... Map ----- +----------------------------------------------------+ | | | | | | | | | ?????????????????????????????????????????????????? | | ?????????????????????????????????????????????????? | | ?????????????????????????????????????????????????? | | ?????????????????????????????????????????????????? | | ?????????????????????????????????????????????????? | | ?????????????????????????????????????????????????? | | ?????????????????????????????????????????????????? | | ?????????????????????????????????????????????????? | | ?????????????????????????????????????????????????? | | ?????????????????????????????????????????????????? | | ????????????????????????##???????????????????????? | | ???????????????????????? ???????????????????????? | | ???????????????????????? #??????????????????????? | | ????????????????????????# #??????????????????????? | | ????????????????????????# #??????????????????????? | | ????????????????????????# #??????????????????????? | | ????????????????????????# #??????????????????????? | | ????????????????????????# #??????????????????????? | | ????????????????????????# #??????????????????????? | | ????????????????????????#w#??????????????????????? | | ????????????????????????#R#??????????????????????? | | ????????????????????????#@#??????????????????????? | | ????????????????????????# #??????????????????????? | | ????????????????????????# #??????????????????????? | | ????????????????????????# #??????????????????????? | | ????????????????????##### #??????????????????????? | | ????????????????????# #??????????????????????? | | ????????????????????###T# #??????????????????????? | | ??????????????????????### #??????????????????????? | | ????????????????????????#=#??????????????????????? | | ???????????????????????? % ???#??#???????????????? | | ??????????????????????## ! ## ## ### #???????????? | | ??????????????????????#" ! " "" ""??????????? | | ??????????????????????# !%[ " " #?????????? | | ??????????????????????# !Y #?????????? | | ??????????????????????# #?????????? | | #########"#########"### #?????????? | | ???????? | | ???????? | | ????????? | | ????????? | | ????????? | | ####################### #?????????? | | ??????????????????????# #?????????? | | ??????????????????????# ??????????? | | ??????????????????????# ??????????? | +----------------------------------------------------+ Best States ------------- Heat Dissipation 31 Energy Generation 17 Energy Capacity 2300 Matter Stores 300 Matter Capacity 300 Sight Range 18 Robot Scan Range 30 Terrain Scan Density 10 Armor Coverage 225 Resistance: KI 10 Resistance: TH 10 Resistance: EX 10 Evasion (%) 63 Offensive Hacking 30 Item Schematics ----------------- VTOL Module | -9/Materials | Hacked Imp. Sensor Array | -9/Materials | Hacked Imp. Flight Unit | -9/Materials | Hacked Propulsion Shielding | -9/Materials | Extracted EMP Blaster | -9/Materials | Hacked Gyrokinetic Inverter | -7/Factory | Hacked Robot Schematics ------------------ None Fabricated ------------ Nothing Alien Tech Used ----------------- None Achievements -------------- None Challenges ------------ None RPGLIKE | -11 -10 -10 -9 -9 -9 -8 -8 -7 -6 -6 --------- Run | Scr Mat Min Mat Min Exi Min Mat Fac Fac Ext Levels Raised 12 | . . 1 4 . 1 . 1 3 1 1 XP Earned 21142 | 3000 710 802 6041 1282 350 500 1535 4322 1500 1100 XP Spent 20700 | 3000 . 1300 4250 . 1500 . . 4880 4570 1200 Upgrades 48 | 6 . 2 8 . 3 . . 16 8 5 Propulsion Slot 6 | 1 . . 1 . 1 . . 1 2 . Utility Slot 4 | . . 2 . . . . . 2 . . Weapon Slot 2 | 2 . . . . . . . . . . Core Integrity 11 | . . . . . . . . 8 3 . Heat Dissipation 1 | . . . 1 . . . . . . . Mass Support 1 | . . . 1 . . . . . . . Inventory Capacity 4 | . . . 4 . . . . . . . Sight Range 2 | . . . . . 2 . . . . . Sensor Range 7 | . . . . . . . . 4 3 . Hack Attack % 4 | 3 . . 1 . . . . . . . KI Resistance % 2 | . . . . . . . . 1 . 1 TH Resistance % 2 | . . . . . . . . . . 2 EX Resistance % 2 | . . . . . . . . . . 2 Protomatter Created 428 | . 8 . 231 31 . . . 99 . 59 Integrity Restored 952 | . . 249 529 -9 . . . 183 . . Core 879 | . . 249 456 -9 . . . 183 . . Parts 73 | . . . 73 . . . . . . . Protomatter Decayed 329 | . . . 295 . . . . 34 . . Game ------ Seed PhasingReactiveShifter Manual? 0 Play Time 00:54:00 Cumulative 55.1 hours Start 2020.01.11 @ 22:14:44 End 2020.01.11 @ 23:08:43 Sessions 1 Manual Loads 0 Difficulty Rogue Special Mode Winter2019/RPGLIKE Game No. 77 Rogue 77 Adventurer 0 Explorer 0 Win Type - Total 0 Types 0/0/0/0/0/0/0 Lore% 33 Gallery% 42 Achievement% 32 Wizard Run 0 Options --------- ASCII 0 Keyboard 0 Movement Mouse Keybinds 0 Fullscreen 1 Font 18/X11 Map View 76x50 Tactical HUD 1 Map Filters NONE Filters NONE Steam 1 RUN: 17999ca7-004f-40e7-8e10-e65d0303569b